Cogmind - Beta 15 @@@ ROGUE MODE // 2025.08.31 @ 20:02:58 Player: Elattomatos Result: Destroyed by as-37439 with Assembled F-torch Performance ------------- Evolutions (0) 0 Regions Visited (4) 800 Robots Destroyed (9) 45 Value Destroyed (80) 80 Prototype IDs (23) 460 Alien Tech Used (0) 0 Bonus (300) 300 TOTAL SCORE: 1685 Bonus ------- Aligned with FarCom 300 Cogmind --------- Core Integrity 0/250 Matter 262/300 Energy 100/100 System Corruption 0% Temperature Cool (20) Movement Rolling (140) Ox4 Location -9/Mines Parts ------- > --- POWER (1) -------- (None) > --- PROPULSION (2) --- Wheel > --- UTILITY (2) ------ High-capacity Storage Unit Signal Interpreter > --- WEAPON (2) ------- Assault Rifle > --- INVENTORY (20) --- Light Ion Engine Compact Wheel Scrap Suit Humpback Improved Terrain Scanner Seismic Detector Transport Network Coupler EM Pulse Gun Assault Rifle AWS/Autocannon Datajack Welding Torch Peak State ------------ > --- POWER ------------ Light Ion Engine > --- PROPULSION ------- Wheel Wheel > --- UTILITY ---------- High-capacity Storage Unit Signal Interpreter > --- WEAPON ----------- Assault Rifle Assault Rifle > --- INVENTORY -------- Light Ion Engine Compact Wheel Scrap Suit Humpback Improved Terrain Scanner Seismic Detector Transport Network Coupler EM Pulse Gun Assault Rifle AWS/Autocannon Datajack Mining Laser Welding Torch [Rating: 12] Favorites ----------- Power Light Ion Engine Engine Light Ion Engine Propulsion Wheel Treads Light Treads Wheel Wheel Utility Signal Interpreter Device Seismic Detector Storage High-capacity Storage Unit Processor Signal Interpreter Weapon Assault Rifle Ballistic Gun Assault Rifle Special Weapon Mining Laser Build | -11 -10 -10 -10 -9 ------- Run | Yrd Mat Min Exi Min Slots Evolved . | . . . . . Power . | . . . . . Propulsion . | . . . . . Utility . | . . . . . Weapon . | . . . . . Parts Attached 13 | 8 2 2 . 1 Power 1 | 1 . . . . Engine 1 | 1 . . . . Core . | . . . . . Reactor . | . . . . . Propulsion 3 | 3 . . . . Treads 1 | 1 . . . . Leg . | . . . . . Wheel 2 | 2 . . . . Hover . | . . . . . Flight . | . . . . . Utility 5 | 2 2 1 . . Device 2 | 1 1 . . . Storage 2 | 1 . 1 . . Processor 1 | . 1 . . . Hackware . | . . . . . Protection . | . . . . . Artifact . | . . . . . Weapon 4 | 2 . 1 . 1 Energy Gun . | . . . . . Energy Cannon . | . . . . . Ballistic Gun 3 | 2 . . . 1 Ballistic Cannon . | . . . . . Launcher . | . . . . . Special Weapon 1 | . . 1 . . Impact Weapon . | . . . . . Slashing Weapon . | . . . . . Piercing Weapon . | . . . . . Special Melee Weapon . | . . . . . Unidentified Prototypes . | . . . . . Parts Lost 4 | . . . . 4 Power 1 | . . . . 1 Propulsion 1 | . . . . 1 Utility . | . . . . . Weapon 2 | . . . . 2 Highest Loss Streak 4 | . . . . 4 To Critical Strikes . | . . . . . Average Backups 10 | 4 7 8 11 12 Power . | . 1 1 1 1 Propulsion 1 | 2 3 1 1 1 Utility 3 | . 2 3 4 5 Weapon 2 | 1 1 2 3 3 Tool/Special . | . . . . . Unused Backups 14 | . 1 1 1 11 Power 1 | . . . . 1 Propulsion 4 | . 1 1 . 2 Utility 4 | . . . . 4 Weapon 3 | . . . 1 2 Tool/Special 2 | . . . . 2 Average Slot Usage (%) 96 | . 100 100 93 94 Engine 13 | . 14 14 14 11 Wheel 28 | . 28 28 28 28 Device 1 | . 13 . . . Storage 14 | . 14 14 14 14 Processor 12 | . . 14 14 14 Ballistic Gun 20 | . 28 26 14 23 Special Weapon 4 | . . 1 8 1 Peak Build Rating 12 | 10 8 9 11 12 Average Rating 8 | 5 8 8 9 11 On Entrance 7 | . 10 8 9 11 Naked Turns . | . . . . . Heaviest Build 47 | 13 13 47 46 47 Greatest Support 20 | 20 20 20 20 20 Greatest Overweight (x) 4 | 2 . 2 2 4 Average Overweight (x) 1 | . . 1 2 2 Largest Inventory Capacity 20 | 8 8 20 20 20 Average Capacity 16 | 7 8 15 20 20 Most Carried 18 | 8 8 12 18 18 Average Carried 11 | 5 7 9 13 16 Final Capacity 20 | 8 8 20 20 20 Final Carried 18 | 8 7 12 18 16 Class Distribution -------------------- 100% | Mutant Dominant Class ---------------- Mutant | -10/Materials Mutant | -10/Mines Mutant | -10/Exiles Mutant | -9/Mines Resources | -11 -10 -10 -10 -9 ----------- Run | Yrd Mat Min Exi Min Matter Collected 369 | 298 . 58 . 13 Remotely . | . . . . . Salvage Created 224 | 125 . 52 . 47 Parts 22 | 6 . 9 . 7 Haulers Intercepted . | . . . . . Recyclers Shooed . | . . . . . Parts Field Recycled . | . . . . . Retrieved Matter . | . . . . . Parts Self-Destructed . | . . . . . Prevented . | . . . . . Kills | -11 -10 -10 -10 -9 ------- Run | Yrd Mat Min Exi Min Combat Hostiles Destroyed 6 | . . 3 . 3 Guns 6 | . . 3 . 3 Classes Destroyed 3 | 2 . 1 . . Tunneler 2 | 2 . . . . Recycler 1 | 1 . . . . Swarmer 6 | . . 3 . 3 Best Kill Streak 3 | 3 . 3 . 3 Combat Bots Only 3 | . . 3 . 3 Max Kills in Single Turn 1 | 1 . 1 . 1 Gunslinging . | . . . . . Exploded . | . . . . . Melee . | . . . . . Uniques/NPCs Destroyed . | . . . . . Combat | -11 -10 -10 -10 -9 -------- Run | Yrd Mat Min Exi Min Hostile Shots Fired 46 | . . 7 . 39 Missed 14 | . . 2 . 12 Hits 32 | . . 5 . 27 Melee 6 | . . . . 6 Projectile 26 | . . 5 . 21 AOE 4 | . . . . 4 Damage Taken 613 | . . 40 . 573 Core 250 | . . . . 250 Absorbed by Shields . | . . . . . Core Remaining (%) 100 | 100 . . . . Volleys Fired 21 | 3 . 6 . 12 Largest 2 | 2 . 2 . 2 Hottest 120 | 40 . 100 . 120 Shots Fired 33 | 6 . 9 . 18 Gun 29 | 6 . 6 . 17 Cannon . | . . . . . Launcher . | . . . . . Special 4 | . . 3 . 1 Kinetic 29 | 6 . 6 . 17 Thermal 4 | . . 3 . 1 Explosive . | . . . . . Electromagnetic . | . . . . . Robot Hit Streak 9 | 3 . 8 . 9 Robot Miss Streak 2 | . . . . 2 Penetration Max . | . . . . . Secondary Targets 2 | . . . . 2 Max Gunslinging Chain 1 | . . . . 1 Shots Hit Robots 15 | 3 . 5 . 7 Core Hits 10 | 3 . 3 . 4 Critical Kills 1 | . . 1 . . Critical Parts Destroyed . | . . . . . Critical Strikes 1 | . . 1 . . Destroy 1 | . . 1 . . Melee Attacks . | . . . . . Impact . | . . . . . Slashing . | . . . . . Piercing . | . . . . . Sneak Attacks . | . . . . . Combat Hostiles . | . . . . . Follow-up Attacks . | . . . . . Damage Inflicted 184 | 43 . 60 . 81 Guns 184 | 43 . 60 . 81 Cannons . | . . . . . Explosions . | . . . . . Melee . | . . . . . Ramming . | . . . . . Kinetic 184 | 43 . 60 . 81 Thermal . | . . . . . Explosive . | . . . . . Electromagnetic . | . . . . . Impact . | . . . . . Slashing . | . . . . . Piercing . | . . . . . Highest Corruption . | . . . . . Average Corruption . | . . . . . Corruption Purged . | . . . . . Corruption Blocked . | . . . . . Overload Shots . | . . . . . Overflow Damage . | . . . . . Projectiles . | . . . . . Explosions . | . . . . . Melee . | . . . . . Knockbacks . | . . . . . Impact . | . . . . . Kinetic . | . . . . . Secondary . | . . . . . Self-Inflicted Damage . | . . . . . Shots . | . . . . . Rammed . | . . . . . Targets Rammed . | . . . . . Kicked . | . . . . . Crushed . | . . . . . Highest Temperature 20 | . . 20 . 20 Average Temperature 12 | . . 12 . 12 Received Heat Transfer 80 | . . . . 80 Siege Activations . | . . . . . Martial Activations . | . . . . . Shielding Activations . | . . . . . Robots Disrupted . | . . . . . Combat Hostiles . | . . . . . Robots Corrupted . | . . . . . Combat Hostiles . | . . . . . Parts Fried . | . . . . . Impact Corruptions . | . . . . . Robots Melted . | . . . . . Combat Hostiles . | . . . . . Parts Melted . | . . . . . Heat Transferred . | . . . . . Parts Sabotaged . | . . . . . Parts Stolen . | . . . . . Parts Stripped . | . . . . . Power Chain Reactions . | . . . . . Alert | -11 -10 -10 -10 -9 ------- Run | Yrd Mat Min Exi Min Maximum Alert Level . | . . . . . Low Security (%) 100 | 100 100 100 . 100 Level 1 . | . . . . . Level 2 . | . . . . . Level 3 . | . . . . . Level 4 . | . . . . . Level 5 . | . . . . . High Security . | . . . . . Max Security . | . . . . . Peak Influence 74 | 5 . 74 . 70 Initial . | . . . . . Average 11 | 2 . 11 . 38 Influence Increases 161 | 15 . 75 . 71 Destroy 0b10 Robot/C 120 | . . 60 . 60 Destroy 0b10 Robot/NC 15 | 15 . . . . Destroy Leader 20 | . . 10 . 10 Allied During Kill 4 | . . 4 . . Destroy Structure 2 | . . 1 . 1 Influence Decreases 161 | 15 . 75 . 71 Time Decay 130 | 15 . 75 . 40 Lost Part 31 | . . . . 31 Squads Dispatched . | . . . . . Investigation . | . . . . . Extermination . | . . . . . Reinforcement . | . . . . . Assault . | . . . . . Garrison . | . . . . . Intercept . | . . . . . Searches Triggered . | . . . . . Construction Impeded . | . . . . . Haulers Reinforced . | . . . . . Active Scanning Responses . | . . . . . Cargo Convoy Interrupts . | . . . . . Stealth | -11 -10 -10 -10 -9 --------- Run | Yrd Mat Min Exi Min Distress Signals . | . . . . . Communications Jammed . | . . . . . Distress Signals . | . . . . . Times Spotted 28 | . . 3 . 25 Peak Tracking Total 22 | . . 3 . 22 Tactical Retreats . | . . . . . Traps | -11 -10 -10 -10 -9 ------- Run | Yrd Mat Min Exi Min Traps Triggered . | . . . . . Indirectly . | . . . . . Trap Hack Attempts . | . . . . . Triggered . | . . . . . Disarmed . | . . . . . Reprogrammed . | . . . . . Reused . | . . . . . Traps Extracted . | . . . . . Installed . | . . . . . Triggered . | . . . . . Machines | -11 -10 -10 -10 -9 ---------- Run | Yrd Mat Min Exi Min Machines Disabled . | . . . . . Max in Single Turn . | . . . . . Machines Repaired . | . . . . . Machines Dismantled . | . . . . . Machines Sabotaged . | . . . . . Overloaded Fab Kills . | . . . . . Hacking | -11 -10 -10 -10 -9 --------- Run | Yrd Mat Min Exi Min Machines Accessed 1 | . . . 1 . Terminals . | . . . . . Fabricators . | . . . . . Repair Stations . | . . . . . Recycling Units . | . . . . . Scanalyzers . | . . . . . Garrison Access . | . . . . . Total Hacks 1 | . . . 1 . Successful 1 | . . . 1 . Failed . | . . . . . Catastrophic . | . . . . . Database Lockouts . | . . . . . Manual 1 | . . . 1 . Terminals . | . . . . . Fabricators . | . . . . . Repair Stations . | . . . . . Recycling Units . | . . . . . Scanalyzers . | . . . . . Garrison Access . | . . . . . Terminal Hacks 1 | . . . 1 . Proto ID Catalog 1 | . . . 1 . Fabricator Hacks . | . . . . . Repair Station Hacks . | . . . . . Recycling Unit Hacks . | . . . . . Scanalyzer . | . . . . . Garrison Access Hacks . | . . . . . Unauthorized Hacks . | . . . . . Terminals . | . . . . . Fabricators . | . . . . . Repair Stations . | . . . . . Recycling Units . | . . . . . Scanalyzers . | . . . . . Garrison Access . | . . . . . Data Cores Recovered . | . . . . . Used . | . . . . . Hacking Detections . | . . . . . Full Trace Events . | . . . . . Feedback Events . | . . . . . Feedback Blocked . | . . . . . Robot Schematics Acquired . | . . . . . Robots Built . | . . . . . Authchips . | . . . . . Time . | . . . . . Total Robot Build Rating . | . . . . . Part Schematics Acquired . | . . . . . Parts Built . | . . . . . Authchips . | . . . . . Time . | . . . . . Total Part Build Rating . | . . . . . Parts Repaired . | . . . . . Time . | . . . . . Parts Recycled . | . . . . . Recycled Matter . | . . . . . Retrieved Matter . | . . . . . Retrieved Components . | . . . . . Parts Scanalyzed . | . . . . . Part Schematics Acquired . | . . . . . Parts Damaged . | . . . . . Bothacking | -11 -10 -10 -10 -9 ------------ Run | Yrd Mat Min Exi Min Used RIF Installer . | . . . . . Robots Hacked . | . . . . . Non-combat . | . . . . . Combat . | . . . . . Robot Hacks Applied . | . . . . . Relay Couplers Released . | . . . . . Fabnet Peak Effective % . | . . . . . Robots Rewired . | . . . . . Allies Hacked . | . . . . . Hacks Repelled . | . . . . . Allies | -11 -10 -10 -10 -9 -------- Run | Yrd Mat Min Exi Min Total Allies 1 | . . 1 . . Largest Group 1 | . . 1 . . Highest-Rated Group 31 | . . 31 . . Highest-Rated Ally 31 | . . 31 . . Total Orders . | . . . . . Ally Attacks . | . . . . . Total Damage . | . . . . . Kills . | . . . . . Allies Corrupted . | . . . . . Allies Melted . | . . . . . Intel | -11 -10 -10 -10 -9 ------- Run | Yrd Mat Min Exi Min Active Infowar (turns) 159 | 33 126 . . . Terrain 33 | 33 . . . . Seismic 126 | . 126 . . . Robot Analysis Total . | . . . . . Derelict Logs Recovered 1 | . . . . 1 Drone Launches . | . . . . . Drone Recoveries . | . . . . . Exploration | -11 -10 -10 -10 -9 ------------- Run | Yrd Mat Min Exi Min Turns Passed 1396 | 85 134 456 628 93 Spaces Moved 1134 | 69 71 375 568 51 Core 22 | 22 . . . . Treads . | . . . . . Legs . | . . . . . Wheels 1112 | 47 71 375 568 51 Hover . | . . . . . Flight . | . . . . . Fastest Speed 50 | 50 80 80 110 110 Average Speed 101 | 77 80 96 110 111 Slowest Speed 150 | 150 80 110 110 140 Overloaded Moves . | . . . . . Propulsion Burnouts . | . . . . . Robots Hopped . | . . . . . Potential Cave-ins 6 | . . . . 6 Cave-ins Triggered . | . . . . . Exploration Rate (%) 32 | 4 14 38 91 14 Regions Visited 4 Branch Regions 3 Pre-discovered Areas 1 | . . . . 1 Known Exits Taken 3 | . 1 1 1 . Unknown Exits Taken 1 | 1 . . . . Scrap Searched 2 | . . 2 . . Spaces Dug 4 | . . 3 . 1 Terrain Destroyed 4 | . . 3 . 1 Melee . | . . . . . Projectile 4 | . . 3 . 1 AOE . | . . . . . Terrain Rammed . | . . . . . Walls Destroyed . | . . . . . Machines Disabled . | . . . . . Actions | -11 -10 -10 -10 -9 --------- Run | Yrd Mat Min Exi Min Total 1334 | 93 147 455 572 67 Wait 136 | . 72 64 . . Move 1130 | 68 70 374 567 51 Hop . | . . . . . Pick Up 24 | 13 1 6 3 1 Fast Attach 2 | 2 . . . . Attach 8 | 6 . . . 2 Detach 2 | 1 . . 1 . Swap 4 | . 2 2 . . Drop 7 | . 2 3 1 1 Fire 21 | 3 . 6 . 12 Melee . | . . . . . Ram . | . . . . . Kick . | . . . . . Crush . | . . . . . Escape Stasis . | . . . . . Rewire . | . . . . . Trap . | . . . . . Miscellaneous . | . . . . . Route ------- -11/Scrapyard -10/Materials -10/Mines (discovered 3 exits: *Mat / *Exi / *Sub) -10/Exiles (discovered 2 exits: *Min x2) -9/Mines (discovered 1 exit: *Mat) History --------- Turn | Location | Event 57 | -11/Scrapyard | Discovered new exit (range 15) 86 | -11/Scrapyard | Entered Materials 188 | -10/Materials | Discovered new exit (range 5) 219 | -10/Materials | Identified exit to Mines 220 | -10/Materials | Entered Mines 223 | -10/Mines | Received a Mining Laser from a helpful Derelict 235 | -10/Mines | Found a Scrap Suit stashed away for nefarious purposes 237 | -10/Mines | Found Scrap Suit 263 | -10/Mines | Discovered new exit (range 5) 285 | -10/Mines | Identified exit to Materials 314 | -10/Mines | Build established: Mutant 397 | -10/Mines | Deemed a non-threat by the Exiles lab entrance 398 | -10/Mines | Discovered new exit (range 5) 402 | -10/Mines | Identified exit to Exiles 621 | -10/Mines | Discovered new exit (range 8) 632 | -10/Mines | Identified exit to Subcaves 676 | -10/Mines | Entered Exiles 693 | -10/Exiles | Discovered new exit (range 15) 707 | -10/Exiles | Identified exit to Mines 735 | -10/Exiles | Met 8R-AWN 751 | -10/Exiles | Met EX-HEX 808 | -10/Exiles | Met EX-DEC 831 | -10/Exiles | Visited The Gauntlet 993 | -10/Exiles | Met EX-BIN 1013 | -10/Exiles | Aligned with FarCom system 1014 | -10/Exiles | Given EX-Vault access code 1039 | -10/Exiles | Opened EX-Vault 1049 | -10/Exiles | Found XL Autogun Array 1063 | -10/Exiles | Found AWS/Autocannon 1086 | -10/Exiles | Warned to stay clear of 0b10 Research branches 1292 | -10/Exiles | Discovered exit to Mines (range 11) 1304 | -10/Exiles | Left Exiles lab with AWS/Autocannon 1304 | -10/Exiles | Entered Mines 1345 | -9/Mines | Discovered new exit (range 7) 1351 | -9/Mines | Identified exit to Materials 1359 | -9/Mines | Assembled infested the area 1360 | -9/Mines | Learned location of Zion (-7) 1364 | -9/Mines | Assisted by a Guerilla fighting off Assembled 1388 | -9/Mines | Core integrity fell below 50% 1397 | -9/Mines | Core integrity fell below 20% 1397 | -9/Mines | Destroyed by as-37439 with Assembled F-torch Last Messages --------------- 01381_ as-69017 destroyed. 01383_ as-06562 destroyed. 01383_ as-23609 destroyed. 01383_ as-67514 destroyed. 01383_ as-94783 destroyed. 01383_ as-93051 destroyed. 01383_ as-43739 destroyed. 01383_ as-94530 destroyed. 01383_ as-64012 destroyed. 01383_ D-53 Grenadier destroyed. 01384_ K-01 Serf collects debris. 01385_ The unstable cave ceiling collapses. 01386_ as-12854 destroyed. 01386_ K-01 Serf destroyed. 01387_ The unstable cave ceiling collapses. 01388_ as-84576 destroyed. 01390_ The unstable cave ceiling collapses. 01390_ Wheel destroyed. 01394_ The unstable cave ceiling collapses. 01397_ U-05 Engineer builds a Wall. Map ----- +----------------------------------------------------+ | ??????????????????????## ##??????????????? | | ???????????????????????## ##???????????????? | | ????????????????????????# #????????????????? | | ????????????????????????# #????????????????? | | ????????????????????????# #????????????????? | | ????????????????????????# ######???????????? | | ????????????????????????# #???????????? | | ????????????????????????###### #???????????? | | ?????????????????????#???????# #???????????? | | ????????????????????## ??????# #???????????? | | ???????????????????## ?????# ######??????? | | ???????????????????? ?????# #####??? | | ????????????????????? ###### ##?? | | ?????????????????????? # # ###### #?? | | ??????????????????????# #?# #?? | | ????????????????##????# # #### """ #?? | | ????????????? ## ????# u"%" """ #?? | | ?????????????# ???## #%!%*### """ #?? | | ??????????????# ??## !# #?# #?? | | ????????????####% #??# =* #?# < #?? | | ???????????? = ## # #?## ##?? | | ????????????? *% %%% # ###???# ###??? | | ???????????????#= %%aa #?????? #????? | | ???????????????# % %a %a #?????? #????? | | ???????????????# a ##?????? ????? | | ???????????????????????# @a %#??????"""g???? | | ???????????????????????# a ##?????g""" #??? | | ???????????????????????## # ##???????"" #??? | | ????????????????????????#####?????????g?#??? | | ???????????????????????????????????????????? | | ???????????????????????????????????????????? | | ???????????????????????????????????????????? | | ???????????????????????????????????????????? | | ???????????????????????????????????????????? | | ???????????????????????????????????????????? | | ???????????????????????????????????????????? | | ???????????????????????????????????????????? | | ???????????????????????????????????????????? | | ???????????????????????????????????????????? | | ???????????????????????????????????????????? | | ???????????????????????????????????????????? | | ???????????????????????????????????????????? | | ???????????????????????????????????????????? | | ???????????????????????????????????????????? | | ???????????????????????????????????????????? | | ???????????????????????????????????????????? | | ???????????????????????????????????????????? | | ???????????????????????????????????????????? | | ???????????????????????????????????????????? | | ???????????????????????????????????????????? | +----------------------------------------------------+ Best States ------------- Heat Dissipation 25 Energy Generation 10 Energy Capacity 125 Matter Stores 300 Matter Capacity 300 Sight Range 16 Terrain Scan Range 16 Terrain Scan Density 10 Evasion (%) 50 Item Schematics ----------------- None Robot Schematics ------------------ None Fabricated ------------ Nothing Repaired ---------- Nothing Alien Tech Used ----------------- None Achievements -------------- Hunted Challenges ------------ None Game ------ Seed ArmorNodeRedistributor Manual? 0 Play Time 00:17:19 Cumulative 24.4 hours Start 2025.08.31 @ 19:41:26 End 2025.08.31 @ 20:02:58 Sessions 1 Manual Loads 0 Difficulty Rogue Special Mode None Game No. 14 Rogue 14 Adventurer 0 Explorer 0 Win Type - Total 0 Types 0/0/0/0/0/0/0/0/0/0 Lore% 12 Gallery% 18 Achievement% 17 Wizard Run 0 Options --------- Layout 1 ASCII 0 Keyboard 0 Movement Mouse Keybinds 0 Fullscreen 2 Font 24/Proggy Map View 50x35 Zoom Use 0% Tactical HUD 1 Map Filters NONE Filters NONE Steam 1 RUN: 92f30475-5646-4409-b3f9-05448e57e6e7